bitfinex/quotes_ETHUSD_20251021
["timestamp","ask_amount","ask_price","bid_price","bid_amount"]
[1761068886392,2.48437073,4025.2,4024.4,2.48479586]
[1761068886586,0.4399,4025.2,4024.0,5.94707378]
[1761068886790,0.4399,4025.1,4023.4,0.2192]
[1761068886981,2.48452555,4025.0,4024.2,2.48495354]
[1761068887177,0.4399,4025.1,4024.3,2.48488764]
[1761068887384,3.463,4025.4,4024.5,2.48473425]
[1761068887613,24.66542703,4026.0,4023.9,1.5552]
[1761068887614,0.2292,4026.0,4025.1,2.48438454]
[1761068887915,0.6691,4025.7,4024.8,2.4845955]
[1761068888100,2.48427045,4025.4,4024.6,2.48467662]
[1761068888306,2.48427933,4025.4,4024.4,2.48483556]
[1761068888514,0.4399,4025.3,4024.2,3.455]
[1761068888812,2.92420032,4025.3,4024.5,2.48473206]
[1761068889029,2.4843486,4025.2,4023.7,0.2192]
[1761068889316,3.8939,4025.2,4024.6,2.4846584]
[1761068889620,3.454,4025.2,4024.8,2.48457876]
[1761068889782,3.454,4025.2,4024.7,2.4846369]
[1761068890178,3.454,4025.2,4024.5,2.4847743]
[1761068890378,0.2292,4026.0,4024.6,0.24404718]
[1761068890580,0.4399,4026.7,4024.8,2.06208]
[1761068890809,0.2292,4026.7,4024.9,0.02484533]
[1761068891044,0.572,4027.1,4025.4,0.50688]
[1761068891230,0.572,4027.1,4026.8,2.48336147]
[1761068891714,0.2292,4027.5,4026.8,2.48336147]
[1761068891875,0.001,4027.8,4026.8,2.85139508]
[1761068892316,0.001,4027.8,4026.8,2.60736147]
[1761068893015,2.48380159,4027.8,4026.8,2.60736147]
[1761068893181,0.125,4027.8,4026.8,2.60736147]
[1761068893995,2.60774923,4027.8,4026.8,2.60736147]
[1761068894199,0.125,4027.8,4026.8,2.60736147]
[1761068894391,2.60775901,4027.8,4026.8,2.60736147]
[1761068894595,0.125,4027.8,4026.8,2.60736147]
[1761068895139,2.6077628,4027.8,4026.8,2.60736147]
[1761068895439,0.4409,4027.4,4026.8,0.124]
[1761068895637,0.2302,4026.9,4026.8,0.124]
[1761068895934,0.001,4026.9,4026.8,2.60736147]
[1761068896101,0.001,4026.9,4026.8,2.85139508]
[1761068896303,0.001,4026.9,4026.8,2.82656147]
[1761068896733,0.001,4026.9,4026.8,2.60736147]
[1761068897153,0.001,4026.9,4026.8,2.63219508]
[1761068897314,0.001,4026.9,4026.8,2.60736147]
[1761068897946,0.001,4026.9,4026.8,2.63219508]
[1761068898129,0.001,4026.9,4026.8,2.60736147]
[1761068899641,0.001,4026.9,4026.8,0.124]
[1761068899806,0.7009,4026.9,4025.9,2.48391393]
[1761068900006,0.124,4026.6,4026.1,2.48378629]
[1761068900206,0.4748,4026.8,4026.0,2.48385494]
[1761068900515,2.95816675,4026.8,4026.4,0.124]
[1761068900921,0.4748,4026.7,4026.4,0.124]
[1761068901108,0.4748,4026.7,4025.5,3.433]
[1761068901314,0.4748,4026.7,4026.1,0.124]
[1761068901515,0.4748,4026.7,4026.1,2.60777638]
[1761068901716,0.4748,4026.7,4026.1,0.124]
[1761068903145,0.4748,4026.7,4026.2,2.48368761]
[1761068903357,0.4748,4026.7,4026.1,0.124]
[1761068903512,2.48348482,4026.6,4026.1,0.124]
[1761068903845,2.48358886,4026.5,4026.1,0.124]
[1761068904252,0.4479,4026.4,4026.1,0.124]
[1761068906461,2.70945639,4026.9,4025.2,0.2192]
[1761068906462,0.2261,4026.9,4025.2,0.2192]
[1761068906615,0.124,4026.6,4026.2,2.48367404]
[1761068906814,2.48344975,4026.7,4025.2,0.2192]
[1761068907034,3.05539753,4026.6,4025.9,2.60786734]
[1761068907348,0.5719,4026.6,4025.9,0.124]
[1761068907534,0.124,4026.6,4025.9,0.124]
[1761068907709,0.2261,4026.9,4025.3,0.72608]
[1761068907912,2.48336147,4026.8,4026.5,0.124]
[1761068908110,0.001,4026.9,4026.3,0.124]
[1761068908456,0.001,4026.9,4026.8,2.48336147]
[1761068908947,0.001,4026.9,4026.8,2.60736147]
[1761068910155,0.001,4026.9,4026.8,0.124]
[1761068910342,0.6787,4026.9,4025.5,1.5552]
[1761068910511,0.6787,4026.9,4026.5,2.60750606]
[1761068910721,0.6787,4026.9,4026.5,0.124]
[1761068911054,0.4479,4026.8,4026.5,0.124]
[1761068911416,0.2308,4026.9,4026.5,0.124]
[1761068911718,0.2308,4026.9,4026.6,2.48348482]
[1761068912523,0.2308,4026.9,4026.6,2.48343174]
[1761068912733,0.2308,4026.9,4026.5,2.60750796]
[1761068912951,0.6787,4026.9,4026.6,2.48346933]
[1761068913252,0.001,4026.9,4026.5,0.124]
[1761068913445,0.001,4026.9,4026.6,2.48343288]
[1761068913940,0.001,4026.9,4026.5,0.124]
[1761068914117,0.001,4026.9,4026.5,2.60750158]
[1761068914454,0.001,4026.9,4026.5,0.124]
[1761068914628,0.6787,4026.9,4026.5,0.124]
[1761068914824,0.4479,4026.8,4026.5,2.60754391]
[1761068915021,0.2308,4026.9,4026.6,2.4834415]
[1761068915225,0.001,4026.9,4026.7,2.48336818]
[1761068915442,0.001,4026.9,4026.8,0.124]
[1761068915635,0.6787,4026.9,4026.8,0.124]
[1761068915831,0.6787,4026.9,4025.8,4.03916284]
[1761068916050,0.6787,4026.9,4026.5,0.124]
[1761068916051,0.4479,4026.8,4026.5,0.124]
[1761068916568,0.5719,4026.8,4026.1,0.124]
[1761068916761,2.93137253,4026.7,4026.1,0.124]
[1761068917127,0.4479,4026.6,4026.1,0.124]
[1761068917373,2.60762512,4026.4,4025.8,0.124]
[1761068917581,0.2298,4025.9,4025.8,0.124]
[1761068918098,0.124,4025.8,4025.1,0.124]
[1761068918248,2.48415399,4025.6,4025.1,0.124]
[1761068918579,0.124,4025.6,4025.1,0.124]
[1761068918783,0.124,4025.6,4024.3,3.427]
[1761068918784,0.4479,4025.5,4024.9,2.48448874]
[1761068918942,0.124,4025.7,4025.1,2.60835505]
[1761068919139,2.48417573,4025.5,4025.1,0.124]
[1761068919592,0.4479,4025.4,4024.4,1.5552]
[1761068919766,0.4479,4025.4,4024.3,3.427]
[1761068919966,0.4479,4025.4,4024.9,2.48448179]
[1761068920278,5.91010931,4025.6,4024.9,2.48450141]
[1761068920481,0.4479,4025.5,4024.9,2.48447656]
[1761068920644,0.4479,4025.5,4025.1,2.48437302]
[1761068920845,0.4479,4025.5,4024.3,3.427]
[1761068921359,0.4479,4025.5,4024.8,2.48459276]
[1761068921564,0.4479,4025.5,4024.3,3.427]
[1761068921860,0.4479,4025.5,4024.9,2.48448972]
[1761068922061,0.4479,4025.5,4025.0,2.4844631]
[1761068922644,0.4479,4025.5,4024.4,1.5552]
[1761068922842,0.4479,4025.5,4025.2,2.48430367]
[1761068922843,3.427,4025.5,4025.2,2.48430367]
[1761068923042,3.427,4025.5,4025.1,2.48441032]
[1761068923278,3.427,4025.5,4025.2,2.48430486]
[1761068923444,3.427,4025.5,4025.3,2.48426382]
[1761068923648,3.427,4025.5,4025.4,2.48422517]
[1761068924148,3.427,4025.5,4025.3,2.48428506]
[1761068924388,0.6777,4025.9,4024.7,0.02484657]
[1761068924586,0.872,4026.2,4025.0,2.48443405]
[1761068924754,0.2298,4025.9,4025.7,2.48403906]
[1761068924958,0.2298,4025.9,4025.8,2.48397833]
[1761068925357,0.872,4026.2,4024.9,0.2192]
[1761068925563,0.872,4026.2,4025.9,2.4838633]
[1761068925884,0.4479,4026.4,4026.0,2.48379875]
[1761068926051,3.8739,4026.4,4025.9,2.48386418]
[1761068926254,0.4479,4026.3,4025.6,2.48405572]
[1761068926478,0.4479,4026.3,4025.1,2.48441032]
[1761068926889,0.4479,4026.3,4025.2,2.4843486]
[1761068927065,0.4479,4026.3,4026.0,2.4838539]
[1761068927269,0.4479,4026.3,4025.9,2.48389841]
[1761068927799,0.4479,4026.3,4025.0,1.5552]
[1761068928100,2.48382665,4026.1,4025.4,2.48416629]
[1761068928257,0.2298,4025.5,4024.1,1.55611784]
[1761068928458,0.2298,4025.5,4025.0,2.48447204]
[1761068928981,0.6777,4025.5,4025.1,2.48439022]
[1761068929287,0.6777,4025.5,4025.2,2.48430426]
[1761068929495,0.6777,4025.5,4025.1,0.124]
[1761068929658,0.6777,4025.5,4025.1,2.60839788]
[1761068929850,0.2298,4025.5,4025.1,2.60839788]
[1761068930075,0.4479,4025.4,4025.2,2.48434161]
[1761068930274,0.2298,4025.5,4025.3,2.48428688]
[1761068930590,0.2298,4025.5,4025.1,0.124]
[1761068930754,0.6777,4025.5,4025.1,0.124]
[1761068931255,0.124,4025.8,4025.4,2.48420964]
[1761068931482,3.6558,4025.9,4024.5,0.50688]
[1761068931690,3.7798,4025.9,4025.2,2.60831151]
[1761068931858,0.4479,4025.8,4025.2,0.124]
[1761068932267,0.4479,4025.8,4025.3,2.48426481]
[1761068932483,0.4479,4025.8,4025.2,2.60833139]
[1761068932897,0.4479,4025.8,4025.3,2.48428239]
[1761068933297,2.93188121,4025.8,4025.2,2.60834058]
[1761068933511,0.4479,4025.8,4025.2,2.60834058]
[1761068933678,2.48417235,4025.5,4025.2,0.124]
[1761068933876,3.426,4025.6,4025.2,2.48430849]
[1761068934096,3.426,4025.6,4024.6,1.5552]
[1761068934097,3.426,4025.6,4025.1,0.124]
[1761068934407,3.426,4025.6,4025.3,2.4842678]
[1761068934571,3.426,4025.6,4025.1,0.124]
[1761068934779,3.8681,4025.6,4025.3,2.48428462]
[1761068935007,3.426,4025.6,4025.2,2.48433967]
[1761068935216,3.426,4025.6,4025.3,2.48428688]
[1761068935380,3.426,4025.6,4025.1,2.60840876]
[1761068935580,3.426,4025.6,4025.3,2.48424652]
[1761068935810,3.8681,4025.6,4025.3,2.48422689]
[1761068935980,3.8681,4025.6,4025.4,2.48418054]
[1761068936186,3.425,4025.7,4025.1,2.48438275]
[1761068936411,3.425,4025.7,4025.4,2.60820145]
[1761068936780,3.425,4025.7,4025.4,0.124]
[1761068937128,0.4421,4025.6,4025.4,0.124]
[1761068937415,0.4421,4025.6,4025.4,2.60818838]
[1761068938311,3.425,4025.7,4025.4,2.60818838]
[1761068938519,3.8671,4025.7,4025.4,0.124]
[1761068938683,3.425,4025.6,4025.4,2.60816347]
[1761068938882,3.425,4025.6,4025.4,0.124]
[1761068939382,3.8671,4025.6,4025.4,0.124]
[1761068939583,3.425,4025.6,4025.4,2.60821823]
[1761068939917,3.425,4025.6,4025.4,0.124]
[1761068940121,3.425,4025.6,4025.4,2.60821618]
[1761068940323,3.425,4025.6,4025.4,2.60821284]
[1761068940508,3.425,4025.6,4025.5,2.48416345]
[1761068940828,0.4421,4025.5,4025.4,0.124]
[1761068941219,0.4421,4025.5,4024.3,1.5552]
[1761068941416,0.4421,4025.5,4024.2,0.124]
[1761068941417,2.7200042,4024.3,4024.2,0.124]
[1761068941581,3.6591,4024.3,4023.9,0.124]
[1761068941788,0.4421,4024.2,4023.5,2.48534739]
[1761068941989,0.4421,4024.2,4022.9,0.2192]
[1761068942288,0.6663834,4026.3,4023.4,2.618]
[1761068942519,0.001,4026.4,4025.9,2.483897]
[1761068942701,0.001,4026.4,4026.3,2.48366987]
[1761068942912,0.001,4026.4,4026.3,2.50850656]
[1761068943089,0.001,4026.4,4026.3,2.72770656]
[1761068943293,0.001,4026.4,4026.3,2.70286987]
[1761068944117,2.48372686,4026.3,4024.8,1.33691784]
[1761068944303,0.4431,4026.4,4025.6,2.48405326]
[1761068944498,0.4421,4026.3,4025.8,2.48396887]
[1761068944950,0.001,4026.4,4025.9,0.02483916]
[1761068945134,0.001,4026.4,4026.3,2.48366987]
[1761068945330,0.001,4026.4,4026.3,4.57058656]
[1761068945529,0.001,4026.4,4026.3,4.78978656]
[1761068946200,0.001,4026.4,4026.3,4.76494987]
[1761068946926,0.001,4026.4,4026.3,4.85122351]
[1761068947729,0.001,4026.4,4026.3,10.09152487]
[1761068947947,0.001,4026.4,4026.3,7.29511387]
[1761068948094,0.001,4026.4,4026.3,4.76494987]
[1761068950216,0.001,4026.4,4026.3,8.18694987]
[1761068951776,0.001,4026.4,4026.3,10.91999987]
[1761068952471,1e-08,4027.4,4027.3,4.76433316]
[1761068952630,1e-08,4027.4,4027.3,30.3710944]
[1761068952830,1e-08,4027.4,4027.3,43.2544934]
[1761068953265,1e-08,4027.4,4027.3,42.9569334]
[1761068953462,1e-08,4027.4,4027.3,34.7769734]
[1761068953663,1e-08,4027.4,4027.3,33.9601704]
[1761068953862,1e-08,4027.4,4027.3,34.84728155]
[1761068954060,1e-08,4027.4,4027.3,32.8900464]
[1761068954233,1e-08,4027.4,4027.3,32.9193004]
[1761068954538,1e-08,4027.4,4027.3,30.7142944]
[1761068954743,1e-08,4027.4,4027.3,8.52953316]
[1761068955291,1e-08,4027.4,4027.3,5.10753316]
[1761068955448,1e-08,4027.4,4027.3,8.52853316]
[1761068956539,1e-08,4027.4,4027.3,2.60705316]
[1761068956830,0.44210001,4027.4,4026.1,0.2192]
[1761068957066,0.44210001,4027.4,4026.2,3.42]
[1761068957264,1e-08,4027.4,4027.3,2.48305316]
[1761068958574,1e-08,4027.4,4027.3,3.01476369]
[1761068958786,0.001,4027.8,4027.7,2.98968656]
[1761068958993,0.001,4027.8,4027.7,9.08408656]
[1761068959599,0.001,4027.8,4027.7,8.86488656]
[1761068961110,0.001,4027.8,4027.7,8.35800656]
[1761068962799,0.4423,4027.8,4026.2,0.09340219]
[1761068962955,0.4423,4027.8,4027.5,2.48288569]
[1761068963155,0.4423,4027.8,4027.4,2.48297139]
[1761068963470,2.92504586,4027.8,4026.8,3.419]
[1761068963675,2.92504586,4027.8,4027.1,2.48317582]
[1761068963896,0.4673,4027.7,4027.1,2.48311499]
[1761068964075,0.4673,4027.7,4026.9,1.5552]
[1761068964268,2.95012227,4027.7,4026.8,3.419]
[1761068964591,0.4673,4027.7,4026.9,2.48325574]
[1761068964784,0.4673,4027.6,4026.9,2.48325574]
[1761068964985,0.4673,4027.6,4027.1,2.48312609]
[1761068965181,0.218,4027.2,4027.1,2.48312609]
[1761068965576,0.6853,4027.2,4027.1,2.48317647]
[1761068966087,0.6853,4027.2,4026.6,2.48347934]
[1761068966301,0.4673,4027.1,4027.0,2.48323814]
[1761068966623,0.4673,4027.1,4027.0,2.60723814]
[1761068966915,0.4673,4027.1,4027.0,0.124]
[1761068968510,0.4673,4027.1,4026.6,0.124]
[1761068969614,2.48356508,4026.5,4025.9,0.124]
[1761068969790,0.124,4026.6,4025.9,2.60787003]
[1761068970022,0.218,4026.0,4025.9,2.60787003]
[1761068970382,0.6853,4026.0,4025.9,2.60787003]
[1761068970583,0.218,4026.3,4026.0,2.48385185]
[1761068970791,0.218,4026.3,4026.2,2.48373155]
[1761068971097,0.218,4026.3,4025.9,0.124]
[1761068971310,0.6853,4026.3,4026.0,2.48385486]
[1761068971478,0.6853,4026.3,4026.2,2.48373155]
[1761068971684,3.417,4027.0,4025.3,3.93424625]
[1761068971685,0.218,4026.7,4026.3,2.48364135]
[1761068971893,0.218,4026.7,4026.4,0.124]
[1761068972113,0.4673,4026.6,4026.4,2.60760503]
[1761068972947,0.4673,4026.6,4025.8,3.417]
[1761068973087,0.4673,4026.6,4026.2,2.48373155]
[1761068973282,0.4673,4026.6,4026.1,0.124]
[1761068973485,0.218,4027.2,4026.4,2.48356372]
[1761068973734,0.001,4027.8,4027.4,2.4829915]
[1761068973735,0.124,4027.6,4027.4,2.4829915]
[1761068973950,0.001,4027.8,4027.7,2.48280656]
[1761068974165,0.001,4027.8,4027.7,2.50763462]
[1761068974369,0.001,4027.8,4027.6,2.48285089]
[1761068974370,0.4683,4027.8,4027.6,2.48285089]
[1761068974659,0.4683,4027.8,4026.9,3.417]
[1761068975017,0.4683,4027.8,4027.4,2.48298533]
[1761068975212,2.48293085,4027.5,4026.7,0.7]
[1761068975416,0.4683,4027.8,4026.3,3.416]
[1761068975417,0.218,4026.8,4026.3,3.416]
[1761068975659,0.218,4026.8,4026.6,2.4834315]
[1761068975814,0.218,4026.8,4026.4,2.48360818]
[1761068975815,0.4673,4026.7,4026.4,2.48360818]
[1761068976417,0.4673,4026.7,4025.8,3.416]
[1761068976418,0.4673,4026.7,4026.5,2.48353227]
[1761068976652,0.218,4026.8,4026.6,2.48342649]
[1761068976855,0.4673,4026.7,4026.0,1.5552]
[1761068977109,0.4673,4026.7,4026.5,2.48349664]
[1761068977574,0.4673,4026.7,4026.4,2.4835905]
[1761068977751,0.4673,4026.7,4026.5,2.48354616]
[1761068977959,0.4673,4026.7,4026.4,2.48359193]
[1761068978159,0.4673,4026.7,4025.9,0.7]
[1761068978754,0.4673,4026.7,4026.3,2.48361163]
[1761068979112,0.4673,4026.7,4026.1,2.48378814]
[1761068979317,0.4673,4026.7,4026.3,2.48365316]
[1761068980450,0.4673,4026.7,4026.4,2.48359789]
[1761068980934,0.218,4026.8,4025.7,3.4398404]
[1761068981248,0.4673,4027.1,4025.8,1.5552]
[1761068981474,1.5552,4027.6,4025.8,1.5552]
[1761068981475,0.4673,4027.6,4026.4,0.002]
[1761068981674,0.001,4027.4,4027.0,2.48319248]
[1761068982034,0.4683,4027.4,4026.9,2.48329249]
[1761068982234,0.4683,4027.4,4027.1,2.48312512]
[1761068982439,0.4683,4027.4,4027.0,2.48323137]
[1761068982938,0.4683,4027.4,4027.1,2.48313078]
[1761068983568,0.4683,4027.4,4027.2,2.48307137]
[1761068984156,0.4683,4027.4,4027.1,2.48316494]
[1761068984342,0.4683,4027.4,4027.3,2.48305316]
[1761068984863,0.4683,4027.4,4027.2,2.48311004]
[1761068985087,0.001,4027.4,4027.3,2.48305316]
[1761068985380,0.001,4027.4,4026.9,0.124]
[1761068985381,0.4673,4027.3,4027.2,2.48311481]
[1761068985542,0.001,4027.4,4027.3,2.48305316]
[1761068986240,0.001,4027.4,4027.3,0.124]
[1761068986439,0.4683,4027.4,4027.3,0.124]
[1761068986675,0.4683,4027.4,4027.2,2.4831098]
[1761068986976,0.4683,4027.4,4027.1,2.48317647]
[1761068987183,0.4683,4027.4,4027.0,2.60722034]
[1761068987355,0.4683,4027.4,4027.1,2.48316368]
[1761068988077,0.4683,4027.4,4027.0,2.60723267]
[1761068988240,0.4683,4027.4,4027.1,2.48316584]
[1761068988441,0.001,4027.4,4027.0,0.124]
[1761068988647,0.001,4027.4,4027.3,2.48305316]
[1761068989062,0.001,4027.4,4027.3,2.50788369]
[1761068989377,0.001,4027.4,4027.3,2.48305316]
[1761068991462,0.001,4027.4,4027.2,0.124]
[1761068991796,0.4683,4027.4,4026.9,0.124]
[1761068992295,0.4683,4027.4,4026.9,2.6072932]
[1761068992867,0.4683,4027.4,4027.0,2.48322503]
[1761068993795,0.4683,4027.4,4027.1,2.4831586]
[1761068994116,0.4683,4027.4,4027.1,2.48317621]
[1761068994603,0.4683,4027.4,4026.9,0.124]
[1761068994800,0.4683,4027.4,4027.1,2.48317118]
[1761068995607,0.4683,4027.4,4026.9,2.60729831]
[1761068995804,0.4683,4027.4,4026.9,0.124]
[1761068995991,0.4683,4027.4,4027.2,2.483107]
[1761068996175,0.001,4027.4,4027.3,2.48305316]
[1761068996599,0.001,4027.4,4027.3,2.50788369]
[1761068997281,0.001,4027.4,4027.3,2.48305316]
[1761069000015,0.001,4027.4,4027.3,3.18305316]
[1761069000936,0.001,4027.4,4026.9,0.002]
[1761069001089,0.441,4027.3,4026.9,0.002]
[1761069001290,0.441,4027.3,4027.2,2.48311481]
[1761069001584,0.441,4027.3,4026.9,0.002]
[1761069001825,0.441,4027.3,4027.0,2.48323814]
[1761069002007,0.441,4027.3,4026.9,0.002]
[1761069002186,0.001,4027.4,4026.9,0.002]
[1761069002999,0.001,4027.4,4027.0,2.48323814]
[1761069003206,0.442,4027.4,4027.0,2.48323814]
[1761069003532,0.442,4027.4,4026.9,0.002]
[1761069004319,0.001,4027.4,4027.3,2.48305316]
[1761069004635,0.001,4027.4,4026.9,2.48524034]
[1761069004839,0.001,4027.4,4027.0,2.48318478]
[1761069005009,0.441,4027.3,4027.0,2.48318478]
[1761069005203,0.441,4027.3,4026.9,0.002]
[1761069005722,2.4835465,4026.5,4025.9,0.002]
[1761069006122,2.48379324,4026.1,4025.9,0.002]
[1761069006548,2.92479324,4026.1,4025.9,0.002]
[1761069007806,0.441,4026.1,4025.9,0.002]
[1761069008436,2.92479324,4026.1,4025.9,0.002]
[1761069009137,0.441,4026.1,4025.9,0.002]
[1761069009461,4.03880542,4026.5,4025.9,0.002]
[1761069009604,0.124,4026.3,4026.2,2.48372433]
[1761069009808,0.88051432,4027.6,4026.3,0.124]
[1761069009809,0.125,4027.4,4026.3,0.124]
[1761069010004,2.825,4027.3,4026.3,0.124]
[1761069010240,0.001,4027.4,4026.9,0.124]
[1761069010424,0.001,4027.4,4026.9,2.60728151]
[1761069010628,0.001,4027.4,4026.9,0.124]
[1761069010805,0.441,4027.3,4026.9,0.124]
[1761069011006,0.001,4027.4,4027.1,2.48316643]
[1761069011303,0.441,4027.3,4026.9,0.124]
[1761069011512,0.001,4027.4,4026.9,0.124]
[1761069011719,0.001,4027.4,4027.2,2.48308558]
[1761069012245,0.001,4027.4,4026.9,0.124]
[1761069012448,0.441,4027.3,4026.9,2.60729777]
[1761069013021,0.001,4027.4,4026.9,0.124]
[1761069013225,0.001,4027.4,4027.2,2.48310942]
[1761069013534,0.001,4027.4,4026.9,0.2232]
[1761069013746,0.001,4027.4,4027.3,2.48305316]
[1761069014151,0.001,4027.4,4027.3,2.70625316]
[1761069014459,0.001,4027.4,4027.3,2.48305316]
[1761069014666,0.001,4027.4,4027.3,3.18305316]
[1761069015684,0.001,4027.4,4027.3,0.7]
[1761069015956,0.442,4027.4,4026.6,3.406]
[1761069016126,0.442,4027.4,4027.0,2.48322258]
[1761069016329,0.001,4027.4,4026.4,0.50688]
[1761069016528,0.001,4027.4,4027.0,2.48322829]
[1761069016757,0.442,4027.4,4026.8,2.48331519]
[1761069018060,0.2168,4026.9,4026.1,1.5552]
[1761069018359,0.2168,4026.9,4026.0,0.002]
[1761069018360,2.48336147,4026.8,4026.0,0.002]
[1761069018657,2.48353159,4026.6,4026.0,0.002]
[1761069018861,3.405,4026.5,4026.0,0.002]
[1761069019071,3.8575,4026.5,4026.0,0.002]
[1761069019273,2.48379324,4026.1,4026.0,0.002]
[1761069019665,2.93629324,4026.1,4026.0,0.002]
[1761069020195,4.49149324,4026.1,4026.0,0.002]
[1761069020859,7.89649324,4026.1,4026.0,0.002]
[1761069021061,2.0077,4026.1,4026.0,0.002]
[1761069021262,0.4525,4026.1,4026.0,0.002]
[1761069021439,3.8575,4026.1,4026.0,0.002]
[1761069021877,3.405,4026.1,4026.0,0.002]
[1761069022041,3.405,4026.1,4026.0,2.48585494]
[1761069022243,3.405,4026.1,4026.0,0.002]
[1761069022467,3.405,4026.1,4026.0,2.48585494]
[1761069023182,3.405,4026.1,4026.0,0.002]
[1761069023381,3.473,4026.1,4026.0,2.48585494]
[1761069023686,0.068,4026.1,4026.0,2.48585494]
[1761069024277,0.068,4026.1,4026.0,2.70905494]
[1761069024746,0.068,4026.1,4026.0,2.48585494]
[1761069026365,0.068,4026.1,4026.0,0.002]
[1761069026599,0.068,4026.1,4026.0,2.48585494]
[1761069026995,0.068,4026.1,4026.0,2.73389348]
[1761069027509,0.068,4026.1,4026.0,2.48585494]
[1761069027909,0.068,4026.1,4026.0,2.73389348]
[1761069028090,0.068,4026.1,4026.0,2.48585494]
[1761069028724,0.068,4026.1,4026.0,3.24077348]
[1761069028879,0.068,4026.1,4026.0,3.33993494]
[1761069029282,0.068,4026.1,4026.0,3.11673494]
[1761069029582,0.068,4026.1,4026.0,3.33993494]
[1761069029777,0.068,4026.1,4026.0,2.60985494]
[1761069029987,0.068,4026.1,4026.0,0.126]
[1761069030314,0.068,4026.1,4026.0,0.002]
[1761069031019,0.5156,4026.1,4026.0,0.002]
[1761069031798,2.99939324,4026.1,4026.0,0.002]
[1761069032403,2.4843486,4025.2,4025.1,0.002]
[1761069032611,5.8863486,4025.2,4025.1,0.002]
[1761069032913,5.8863486,4025.2,4023.0,1.33385987]
[1761069032914,0.50688,4025.1,4022.9,0.2312]
[1761069033113,2.4847112,4024.7,4022.9,0.4624]
[1761069033289,2.0028,4025.1,4022.9,0.4624]
[1761069033496,2.48484195,4024.5,4023.0,0.50688]
[1761069033702,0.6828,4025.0,4023.1,0.02485645]
[1761069033914,0.6828,4025.0,4024.3,2.48489581]
[1761069034123,0.4476,4024.9,4023.1,0.50688]
[1761069034427,0.4476,4024.9,4024.3,2.48488843]
[1761069034729,0.2352,4025.0,4024.6,2.48469077]
[1761069034903,0.2352,4025.0,4023.6,2.06208]
[1761069035103,0.2352,4025.0,4023.9,1.5552]
[1761069035304,0.2352,4025.0,4024.7,2.48460106]
[1761069035920,0.2352,4025.0,4023.4,2.48542053]
[1761069035921,3.402,4025.2,4023.7,2.48527474]
[1761069036125,3.402,4025.2,4025.1,2.48441032]
[1761069036434,0.6828,4025.6,4024.0,0.50688]
[1761069036605,0.4476,4025.5,4025.0,2.48446236]
[1761069037022,0.4476,4025.5,4025.1,2.48439522]
[1761069037216,0.4476,4025.5,4025.0,2.48446064]
[1761069037422,0.4476,4025.5,4024.7,2.48459877]
[1761069037622,0.4476,4025.5,4023.9,1.5552]
[1761069037623,2.93181258,4025.5,4023.9,5.46408]
[1761069037818,0.4476,4025.5,4024.0,1.5552]
[1761069038029,0.4476,4025.5,4024.9,2.48449414]
[1761069038401,0.2352,4025.6,4024.5,0.2312]
[1761069038651,0.2352,4025.6,4025.1,2.48439443]
[1761069038947,0.2352,4026.0,4024.6,2.48471536]
[1761069039103,0.068,4026.1,4025.2,1.5552]
[1761069039298,0.2352,4025.9,4024.6,1.5552]
[1761069039601,0.4476,4025.8,4025.2,2.48433393]
[1761069039827,0.4476,4025.8,4024.2,1.5552]
[1761069040000,0.4476,4025.8,4025.5,2.48411832]
[1761069040200,0.4476,4025.8,4024.3,0.50688]
[1761069040405,0.4476,4025.8,4024.6,1.5552]
[1761069040704,0.4476,4025.8,4024.5,2.48478071]
[1761069040911,0.4476,4025.8,4024.4,1.5552]
[1761069041238,0.4476,4025.8,4024.8,1.5552]
[1761069041431,0.4476,4025.7,4024.6,2.48471897]
[1761069041636,0.4476,4025.7,4025.4,2.48422266]
[1761069041809,0.4476,4025.7,4025.1,0.124]
[1761069042133,0.4476,4025.7,4025.3,2.48428528]
[1761069042329,0.4476,4025.7,4025.2,2.4843174]
[1761069043204,0.4476,4025.7,4025.3,2.48428036]
[1761069043749,0.4476,4025.7,4025.4,2.4842198]
[1761069043914,0.124,4025.8,4025.1,0.124]
[1761069044121,0.124,4025.8,4025.3,2.48424515]
[1761069044320,0.124,4025.8,4025.1,2.60840744]
[1761069044321,0.4476,4025.7,4025.4,2.48421986]
[1761069044506,0.4476,4025.7,4025.1,2.60840744]
[1761069044507,0.4476,4025.7,4025.3,2.48427197]
[1761069044704,0.4476,4025.7,4025.2,2.48434184]
[1761069045142,0.4476,4025.7,4024.3,0.50688]
[1761069045321,0.4476,4025.7,4025.1,2.60839824]
[1761069045521,0.4476,4025.7,4025.2,2.48433131]
[1761069045915,0.4476,4025.7,4025.3,2.48426583]
[1761069046255,0.4476,4025.7,4025.4,2.48418513]
[1761069046557,0.4476,4025.7,4024.3,0.50688]
[1761069046750,0.4476,4025.7,4025.2,2.4843209]
[1761069048145,0.4476,4025.7,4025.1,2.48440866]
[1761069048345,0.4476,4025.7,4025.3,2.48424579]
[1761069048851,0.4476,4025.7,4025.1,2.48439741]
[1761069049013,2.93165454,4025.7,4025.0,2.48445301]
[1761069049416,0.2352,4024.9,4023.2,24.66460402]
[1761069049748,3.401,4025.8,4023.2,24.66460402]
[1761069049749,2.93171927,4025.6,4024.9,2.48449671]
[1761069050047,0.4476,4025.6,4024.2,1.5552]
[1761069050248,0.4476,4025.6,4024.1,0.2312]
[1761069050437,0.4476,4025.6,4025.0,2.48443349]